Workbook

Sheet Kostnader för badrumsrenovering
B1: KALKYLBLADET KOSTNADER FÖR BADRUMSRENOVERING
B2: Obs! Kolumnerna med skillnaden visas om det faktiska beloppet har överskridit det beräknade. Röda tal anger överskridande (negativt) och svarta anger underskridande (positivt).
E3: Specificerad kostnad (kr) | H3: Totalkostnad (kr)
B4: Område | C4: Artiklar | D4: Antal | E4: Beräknad | F4: Faktisk | G4: Skillnad | H4: Beräknad | I4: Faktisk | J4: Skillnad
B5: Badkar/Dusch | C5: Badkar, gjutjärn, 1,5 m, standard | D5: 1 | E5: 250.00 kr | F5: =RANDBETWEEN(E5+2,E5+20) -> 259.00 kr | G5: =IFERROR(Kostnader[[#This Row],[Beräknad]]-Kostnader[[#This Row],[Faktisk]], "") -> -9.00 kr | H5: =IFERROR(Kostnader[[#This Row],[Antal]]*Kostnader[[#This Row],[Beräknad]], "") -> 250.00 kr | I5: =IFERROR(Kostnader[[#This Row],[Antal]]*Kostnader[[#This Row],[Faktisk]], "") -> 259.00 kr | J5: =IFERROR(Kostnader[[#This Row],[Beräknad ]]-Kostnader[[#This Row],[Faktisk ]], "") -> -9.00 kr
B6: Badkar/Dusch | C6: Duschdörrar, med gångjärn, standard | D6: 1 | E6: 200.00 kr | F6: 210.00 kr | G6: =IFERROR(Kostnader[[#This Row],[Beräknad]]-Kostnader[[#This Row],[Faktisk]], "") -> -10.00 kr | H6: =IFERROR(Kostnader[[#This Row],[Antal]]*Kostnader[[#This Row],[Beräknad]], "") -> 200.00 kr | I6: =IFERROR(Kostnader[[#This Row],[Antal]]*Kostnader[[#This Row],[Faktisk]], "") -> 210.00 kr | J6: =IFERROR(Kostnader[[#This Row],[Beräknad ]]-Kostnader[[#This Row],[Faktisk ]], "") -> -10.00 kr
B7: Badkar/Dusch | C7: Duschmunstycke, standard | D7: 1 | E7: 50.00 kr | F7: 60.00 kr | G7: =IFERROR(Kostnader[[#This Row],[Beräknad]]-Kostnader[[#This Row],[Faktisk]], "") -> -10.00 kr | H7: =IFERROR(Kostnader[[#This Row],[Antal]]*Kostnader[[#This Row],[Beräknad]], "") -> 50.00 kr | I7: =IFERROR(Kostnader[[#This Row],[Antal]]*Kostnader[[#This Row],[Faktisk]], "") -> 60.00 kr | J7: =IFERROR(Kostnader[[#This Row],[Beräknad ]]-Kostnader[[#This Row],[Faktisk ]], "") -> -10.00 kr
B8: Badkar/Dusch | C8: Badkarsvägg, standard | D8: 1 | E8: 200.00 kr | F8: 215.00 kr | G8: =IFERROR(Kostnader[[#This Row],[Beräknad]]-Kostnader[[#This Row],[Faktisk]], "") -> -15.00 kr | H8: =IFERROR(Kostnader[[#This Row],[Antal]]*Kostnader[[#This Row],[Beräknad]], "") -> 200.00 kr | I8: =IFERROR(Kostnader[[#This Row],[Antal]]*Kostnader[[#This Row],[Faktisk]], "") -> 215.00 kr | J8: =IFERROR(Kostnader[[#This Row],[Beräknad ]]-Kostnader[[#This Row],[Faktisk ]], "") -> -15.00 kr
B9: Skåp | C9: Medicinskåp 60 cm, deluxe | D9: 1 | E9: 200.00 kr | F9: 215.00 kr | G9: =IFERROR(Kostnader[[#This Row],[Beräknad]]-Kostnader[[#This Row],[Faktisk]], "") -> -15.00 kr | H9: =IFERROR(Kostnader[[#This Row],[Antal]]*Kostnader[[#This Row],[Beräknad]], "") -> 200.00 kr | I9: =IFERROR(Kostnader[[#This Row],[Antal]]*Kostnader[[#This Row],[Faktisk]], "") -> 215.00 kr | J9: =IFERROR(Kostnader[[#This Row],[Beräknad ]]-Kostnader[[#This Row],[Faktisk ]], "") -> -15.00 kr
B10: Skåp | C10: Tvättställ med skåp 75 cm, standard | D10: 2 | E10: 100.00 kr | F10: 106.00 kr | G10: =IFERROR(Kostnader[[#This Row],[Beräknad]]-Kostnader[[#This Row],[Faktisk]], "") -> -6.00 kr | H10: =IFERROR(Kostnader[[#This Row],[Antal]]*Kostnader[[#This Row],[Beräknad]], "") -> 200.00 kr | I10: =IFERROR(Kostnader[[#This Row],[Antal]]*Kostnader[[#This Row],[Faktisk]], "") -> 212.00 kr | J10: =IFERROR(Kostnader[[#This Row],[Beräknad ]]-Kostnader[[#This Row],[Faktisk ]], "") -> -12.00 kr
B11: Bänkar | C11: Keramiska plattor, deluxe (antal i m²) | D11: 5 | E11: 22.50 kr | F11: 27.00 kr | G11: =IFERROR(Kostnader[[#This Row],[Beräknad]]-Kostnader[[#This Row],[Faktisk]], "") -> -4.50 kr | H11: =IFERROR(Kostnader[[#This Row],[Antal]]*Kostnader[[#This Row],[Beräknad]], "") -> 112.50 kr | I11: =IFERROR(Kostnader[[#This Row],[Antal]]*Kostnader[[#This Row],[Faktisk]], "") -> 135.00 kr | J11: =IFERROR(Kostnader[[#This Row],[Beräknad ]]-Kostnader[[#This Row],[Faktisk ]], "") -> -22.50 kr
B12: Kranar | C12: Vattenkran, badkar, standard | D12: 1 | E12: 90.00 kr | F12: 94.00 kr | G12: =IFERROR(Kostnader[[#This Row],[Beräknad]]-Kostnader[[#This Row],[Faktisk]], "") -> -4.00 kr | H12: =IFERROR(Kostnader[[#This Row],[Antal]]*Kostnader[[#This Row],[Beräknad]], "") -> 90.00 kr | I12: =IFERROR(Kostnader[[#This Row],[Antal]]*Kostnader[[#This Row],[Faktisk]], "") -> 94.00 kr | J12: =IFERROR(Kostnader[[#This Row],[Beräknad ]]-Kostnader[[#This Row],[Faktisk ]], "") -> -4.00 kr
B13: Kranar | C13: Vattenkran, dusch, ett handtag, standard | D13: 1 | E13: 115.00 kr | F13: 124.00 kr | G13: =IFERROR(Kostnader[[#This Row],[Beräknad]]-Kostnader[[#This Row],[Faktisk]], "") -> -9.00 kr | H13: =IFERROR(Kostnader[[#This Row],[Antal]]*Kostnader[[#This Row],[Beräknad]], "") -> 115.00 kr | I13: =IFERROR(Kostnader[[#This Row],[Antal]]*Kostnader[[#This Row],[Faktisk]], "") -> 124.00 kr | J13: =IFERROR(Kostnader[[#This Row],[Beräknad ]]-Kostnader[[#This Row],[Faktisk ]], "") -> -9.00 kr
B14: Kranar | C14: Tvättställsblandare, standard | D14: 1 | E14: 95.00 kr | F14: 106.00 kr | G14: =IFERROR(Kostnader[[#This Row],[Beräknad]]-Kostnader[[#This Row],[Faktisk]], "") -> -11.00 kr | H14: =IFERROR(Kostnader[[#This Row],[Antal]]*Kostnader[[#This Row],[Beräknad]], "") -> 95.00 kr | I14: =IFERROR(Kostnader[[#This Row],[Antal]]*Kostnader[[#This Row],[Faktisk]], "") -> 106.00 kr | J14: =IFERROR(Kostnader[[#This Row],[Beräknad ]]-Kostnader[[#This Row],[Faktisk ]], "") -> -11.00 kr
B15: Golv | C15: Keramiska plattor, standard (antal i m²) | D15: 35 | E15: 12.00 kr | F15: 25.00 kr | G15: =IFERROR(Kostnader[[#This Row],[Beräknad]]-Kostnader[[#This Row],[Faktisk]], "") -> -13.00 kr | H15: =IFERROR(Kostnader[[#This Row],[Antal]]*Kostnader[[#This Row],[Beräknad]], "") -> 420.00 kr | I15: =IFERROR(Kostnader[[#This Row],[Antal]]*Kostnader[[#This Row],[Faktisk]], "") -> 875.00 kr | J15: =IFERROR(Kostnader[[#This Row],[Beräknad ]]-Kostnader[[#This Row],[Faktisk ]], "") -> -455.00 kr
B16: Maskinvara | C16: Handduksstång, standard | D16: 2 | E16: 15.00 kr | F16: 28.00 kr | G16: =IFERROR(Kostnader[[#This Row],[Beräknad]]-Kostnader[[#This Row],[Faktisk]], "") -> -13.00 kr | H16: =IFERROR(Kostnader[[#This Row],[Antal]]*Kostnader[[#This Row],[Beräknad]], "") -> 30.00 kr | I16: =IFERROR(Kostnader[[#This Row],[Antal]]*Kostnader[[#This Row],[Faktisk]], "") -> 56.00 kr | J16: =IFERROR(Kostnader[[#This Row],[Beräknad ]]-Kostnader[[#This Row],[Faktisk ]], "") -> -26.00 kr
B17: Maskinvara | C17: Toalettrullehållare | D17: 1 | E17: 10.00 kr | F17: 19.00 kr | G17: =IFERROR(Kostnader[[#This Row],[Beräknad]]-Kostnader[[#This Row],[Faktisk]], "") -> -9.00 kr | H17: =IFERROR(Kostnader[[#This Row],[Antal]]*Kostnader[[#This Row],[Beräknad]], "") -> 10.00 kr | I17: =IFERROR(Kostnader[[#This Row],[Antal]]*Kostnader[[#This Row],[Faktisk]], "") -> 19.00 kr | J17: =IFERROR(Kostnader[[#This Row],[Beräknad ]]-Kostnader[[#This Row],[Faktisk ]], "") -> -9.00 kr
B18: Belysning | C18: Infälld belysning, standard | D18: 4 | E18: 25.00 kr | F18: 38.00 kr | G18: =IFERROR(Kostnader[[#This Row],[Beräknad]]-Kostnader[[#This Row],[Faktisk]], "") -> -13.00 kr | H18: =IFERROR(Kostnader[[#This Row],[Antal]]*Kostnader[[#This Row],[Beräknad]], "") -> 100.00 kr | I18: =IFERROR(Kostnader[[#This Row],[Antal]]*Kostnader[[#This Row],[Faktisk]], "") -> 152.00 kr | J18: =IFERROR(Kostnader[[#This Row],[Beräknad ]]-Kostnader[[#This Row],[Faktisk ]], "") -> -52.00 kr
B19: Handfat | C19: Toalett, standard | D19: 2 | E19: 60.00 kr | F19: 63.00 kr | G19: =IFERROR(Kostnader[[#This Row],[Beräknad]]-Kostnader[[#This Row],[Faktisk]], "") -> -3.00 kr | H19: =IFERROR(Kostnader[[#This Row],[Antal]]*Kostnader[[#This Row],[Beräknad]], "") -> 120.00 kr | I19: =IFERROR(Kostnader[[#This Row],[Antal]]*Kostnader[[#This Row],[Faktisk]], "") -> 126.00 kr | J19: =IFERROR(Kostnader[[#This Row],[Beräknad ]]-Kostnader[[#This Row],[Faktisk ]], "") -> -6.00 kr
B20: Övrigt | D20: 1 | E20: 20.00 kr | F20: 25.00 kr | G20: =IFERROR(Kostnader[[#This Row],[Beräknad]]-Kostnader[[#This Row],[Faktisk]], "") -> -5.00 kr | H20: =IFERROR(Kostnader[[#This Row],[Antal]]*Kostnader[[#This Row],[Beräknad]], "") -> 20.00 kr | I20: =IFERROR(Kostnader[[#This Row],[Antal]]*Kostnader[[#This Row],[Faktisk]], "") -> 25.00 kr | J20: =IFERROR(Kostnader[[#This Row],[Beräknad ]]-Kostnader[[#This Row],[Faktisk ]], "") -> -5.00 kr
B21: Delsumma | E21: =SUBTOTAL(109,Kostnader[Beräknad]) -> 1,464.50 kr | F21: =SUBTOTAL(109,Kostnader[Faktisk]) -> 1,614.00 kr | G21: =SUBTOTAL(109,Kostnader[Skillnad]) -> -149.50 kr | H21: =SUBTOTAL(109,Kostnader[[Beräknad ]]) -> 2,212.50 kr | I21: =SUBTOTAL(109,Kostnader[[Faktisk ]]) -> 2,883.00 kr | J21: =SUBTOTAL(109,Kostnader[[Skillnad ]]) -> -670.50 kr
B23: Oförutsedda kostnader (lägg till 30 % av beräknat) | E23: =IFERROR(Kostnader[[#Totals],[Beräknad]]*0.3, "") -> 439.35 kr | H23: =IFERROR(Kostnader[[#Totals],[Beräknad ]]*0.3, "") -> 663.75 kr
B24: Totala kostnader | E24: =IFERROR(SUM(E21:E21), "") -> 1,464.50 kr | H24: =IFERROR(SUM(Kostnader[[#Totals],[Beräknad ]],Överskott), "") -> 2,876.25 kr
